Cogmind - Beta 12 @@@ ROGUE MODE // 2023.03.26 @ 03:23:42 Player: Rainynight Result: Destroyed by H-71 Marshal with Heavy Mass Driver Performance ------------- Evolutions (5) 2500 Regions Visited (14) 2800 Robots Destroyed (0) 0 Value Destroyed (0) 0 Prototype IDs (0) 0 Alien Tech Used (0) 0 Bonus (3163) 3163 TOTAL SCORE: 8463 Bonus ------- Devolution -13500 Fragile Parts 1250 No Salvage 1250 Pure Core 2500 Scavenger 5000 Simple Hacker 2532 Trapped 750 Pacifist 2081 Entered DSFs 1000 Aligned with FarCom 300 Cogmind --------- Core Integrity 0/800 Matter 161/300 Energy 98/100 System Corruption 5% Temperature Hot (273) Movement Core (50) Location -5/Factory Parts ------- > --- POWER (1) -------- (None) > --- PROPULSION (6) --- (None) > --- UTILITY (5) ------ (None) > --- WEAPON (3) ------- (None) > --- INVENTORY (0) ---- (None) Peak State ------------ None Favorites ----------- Power None Propulsion None Utility None Weapon None Build | -11 -10 -10 -9 -9 -9 -8 -8 -7 -7 -6 -6 -6 -6 -5 ------- Run | Jun Mat Min Mat Min Exi Min Mat Fac DSF Fac Was Fac DSF Fac Slots Evolved -5 | . . . -1 . . . -1 -1 . -1 . . . -1 Power . | . . . . . . . . . . . . . . . Propulsion -1 | . . . . . . . -1 . . . . . . . Utility -3 | . . . . . . . . -1 . -1 . . . -1 Weapon -1 | . . . -1 . . . . . . . . . . . Parts Attached . | . . . . . . . . . . . . . . . Power . | . . . . . . . . . . . . . . . Engine . | . . . . . . . . . . . . . . . Core . | . . . . . . . . . . . . . . . Reactor . | . . . . . . . . . . . . . . . Propulsion . | . . . . . . . . . . . . . . . Treads . | . . . . . . . . . . . . . . . Leg . | . . . . . . . . . . . . . . . Wheel . | . . . . . . . . . . . . . . . Hover . | . . . . . . . . . . . . . . . Flight . | . . . . . . . . . . . . . . . Utility . | . . . . . . . . . . . . . . . Device . | . . . . . . . . . . . . . . . Storage . | . . . . . . . . . . . . . . . Processor . | . . . . . . . . . . . . . . . Hackware . | . . . . . . . . . . . . . . . Protection . | . . . . . . . . . . . . . . . Artifact . | . . . . . . . . . . . . . . . Weapon . | . . . . . . . . . . . . . . . Energy Gun . | . . . . . . . . . . . . . . . Energy Cannon . | . . . . . . . . . . . . . . . Ballistic Gun . | . . . . . . . . . . . . . . . Ballistic Cannon . | . . . . . . . . . . . . . . . Launcher . | . . . . . . . . . . . . . . . Special Weapon . | . . . . . . . . . . . . . . . Impact Weapon . | . . . . . . . . . . . . . . . Slashing Weapon . | . . . . . . . . . . . . . . . Piercing Weapon . | . . . . . . . . . . . . . . . Special Melee Weapon . | . . . . . . . . . . . . . . . Unidentified Prototypes . | . . . . . . . . . . . . . . . Parts Lost . | . . . . . . . . . . . . . . . Power . | . . . . . . . . . . . . . . . Propulsion . | . . . . . . . . . . . . . . . Utility . | . . . . . . . . . . . . . . . Weapon . | . . . . . . . . . . . . . . . Highest Loss Streak . | . . . . . . . . . . . . . . . To Critical Strikes . | . . . . . . . . . . . . . . . Average Slot Usage (%) . | . . . . . . . . . . . . . . . Naked Turns 1347 | . 33 78 30 103 81 101 156 83 108 212 42 38 42 240 Heaviest Build . | . . . . . . . . . . . . . . . Greatest Support 3 | 3 3 3 3 3 3 3 3 3 3 3 3 3 3 3 Greatest Overweight (x) . | . . . . . . . . . . . . . . . Average Overweight (x) . | . . . . . . . . . . . . . . . Largest Inventory Capacity . | . . . . . . . . . . . . . . . Average Capacity . | . . . . . . . . . . . . . . . Most Carried . | . . . . . . . . . . . . . . . Average Carried . | . . . . . . . . . . . . . . . Final Capacity . | . . . . . . . . . . . . . . . Final Carried . | . . . . . . . . . . . . . . . Class Distribution -------------------- 100% | Mutant Dominant Class ---------------- Mutant | -10/Materials Mutant | -10/Mines Mutant | -9/Materials Mutant | -9/Mines Mutant | -9/Exiles Mutant | -8/Mines Mutant | -8/Materials Mutant | -7/Factory Mutant | -7/DSF Mutant | -6/Factory Mutant | -6/Waste Mutant | -6/Factory Mutant | -6/DSF Mutant | -5/Factory Resources | -11 -10 -10 -9 -9 -9 -8 -8 -7 -7 -6 -6 -6 -6 -5 ----------- Run | Jun Mat Min Mat Min Exi Min Mat Fac DSF Fac Was Fac DSF Fac Matter Collected 21 | . . . . . . . . . . 21 . . . . Remotely . | . . . . . . . . . . . . . . . Salvage Created . | . . . . . . . . . . . . . . . Parts . | . . . . . . . . . . . . . . . Haulers Intercepted . | . . . . . . . . . . . . . . . Recyclers Shooed . | . . . . . . . . . . . . . . . Parts Field Recycled . | . . . . . . . . . . . . . . . Retrieved Matter . | . . . . . . . . . . . . . . . Parts Self-Destructed . | . . . . . . . . . . . . . . . Prevented . | . . . . . . . . . . . . . . . Kills | -11 -10 -10 -9 -9 -9 -8 -8 -7 -7 -6 -6 -6 -6 -5 ------- Run | Jun Mat Min Mat Min Exi Min Mat Fac DSF Fac Was Fac DSF Fac Combat Hostiles Destroyed . | . . . . . . . . . . . . . . . Classes Destroyed . | . . . . . . . . . . . . . . . Best Kill Streak . | . . . . . . . . . . . . . . . Combat Bots Only . | . . . . . . . . . . . . . . . Max Kills in Single Turn . | . . . . . . . . . . . . . . . Gunslinging . | . . . . . . . . . . . . . . . Exploded . | . . . . . . . . . . . . . . . Melee . | . . . . . . . . . . . . . . . Uniques/NPCs Destroyed . | . . . . . . . . . . . . . . . Combat | -11 -10 -10 -9 -9 -9 -8 -8 -7 -7 -6 -6 -6 -6 -5 -------- Run | Jun Mat Min Mat Min Exi Min Mat Fac DSF Fac Was Fac DSF Fac Damage Taken 1790 | 5 . . 28 11 . 3 146 37 371 251 . . 92 846 Core 1790 | 5 . . 28 11 . 3 146 37 371 251 . . 92 846 Absorbed by Shields 4 | . . . . . . . . . . . . . 4 . Core Remaining (%) 79 | 99 . 99 . . . 94 81 . 49 . . . 57 . Volleys Fired . | . . . . . . . . . . . . . . . Largest . | . . . . . . . . . . . . . . . Hottest . | . . . . . . . . . . . . . . . Shots Fired . | . . . . . . . . . . . . . . . Gun . | . . . . . . . . . . . . . . . Cannon . | . . . . . . . . . . . . . . . Launcher . | . . . . . . . . . . . . . . . Special . | . . . . . . . . . . . . . . . Kinetic . | . . . . . . . . . . . . . . . Thermal . | . . . . . . . . . . . . . . . Explosive . | . . . . . . . . . . . . . . . Electromagnetic . | . . . . . . . . . . . . . . . Robot Hit Streak . | . . . . . . . . . . . . . . . Robot Miss Streak . | . . . . . . . . . . . . . . . Penetration Max . | . . . . . . . . . . . . . . . Secondary Targets . | . . . . . . . . . . . . . . . Shots Hit Robots . | . . . . . . . . . . . . . . . Core Hits 1 | . . . . . . . . . . . . . . 1 Critical Kills . | . . . . . . . . . . . . . . . Critical Parts Destroyed . | . . . . . . . . . . . . . . . Critical Strikes . | . . . . . . . . . . . . . . . Melee Attacks . | . . . . . . . . . . . . . . . Impact . | . . . . . . . . . . . . . . . Slashing . | . . . . . . . . . . . . . . . Piercing . | . . . . . . . . . . . . . . . Sneak Attacks . | . . . . . . . . . . . . . . . Combat Hostiles . | . . . . . . . . . . . . . . . Follow-up Attacks . | . . . . . . . . . . . . . . . Damage Inflicted 59 | 11 . . . . . 8 . . 8 . . . . 32 Guns . | . . . . . . . . . . . . . . . Cannons . | . . . . . . . . . . . . . . . Explosions . | . . . . . . . . . . . . . . . Melee . | . . . . . . . . . . . . . . . Ramming 59 | 11 . . . . . 8 . . 8 . . . . 32 Kinetic . | . . . . . . . . . . . . . . . Thermal . | . . . . . . . . . . . . . . . Explosive . | . . . . . . . . . . . . . . . Electromagnetic . | . . . . . . . . . . . . . . . Impact . | . . . . . . . . . . . . . . . Slashing . | . . . . . . . . . . . . . . . Piercing . | . . . . . . . . . . . . . . . Highest Corruption 17 | . . . . . . . 3 . . 4 14 17 17 5 Average Corruption 7 | . . . . . . . 2 . . 3 10 15 17 3 Corruption Purged . | . . . . . . . . . . . . . . . Corruption Blocked . | . . . . . . . . . . . . . . . Effects 9 | . . . . . . . . . . 2 1 2 2 2 Message Errors 4 | . . . . . . . . . . 1 1 1 . 1 Matter Fused 1 | . . . . . . . . . . 1 . . . . Heat Flow Errors 2 | . . . . . . . . . . . . . 1 1 Energy Discharges 1 | . . . . . . . . . . . . 1 . . Data Loss (minor) 1 | . . . . . . . . . . . . . 1 . Overload Shots . | . . . . . . . . . . . . . . . Overflow Damage . | . . . . . . . . . . . . . . . Projectiles . | . . . . . . . . . . . . . . . Explosions . | . . . . . . . . . . . . . . . Melee . | . . . . . . . . . . . . . . . Knockbacks . | . . . . . . . . . . . . . . . Impact . | . . . . . . . . . . . . . . . Kinetic . | . . . . . . . . . . . . . . . Secondary . | . . . . . . . . . . . . . . . Self-Inflicted Damage 25 | 5 . . . . . 3 . . 4 . . . . 13 Shots . | . . . . . . . . . . . . . . . Rammed 15 | 1 . . . . . 3 . . 1 . . . . 10 Targets Rammed 15 | 1 . . . . . 3 . . 1 . . . . 10 Kicked . | . . . . . . . . . . . . . . . Crushed . | . . . . . . . . . . . . . . . Highest Temperature 273 | . . . . . . . . . . . . . 154 273 Average Temperature 129 | . . . . . . . . . . . . . 94 273 Received Heat Transfer 114 | . . . . 6 . . 27 . . 9 . . 9 63 Siege Activations . | . . . . . . . . . . . . . . . Robots Corrupted . | . . . . . . . . . . . . . . . Combat Hostiles . | . . . . . . . . . . . . . . . Parts Fried . | . . . . . . . . . . . . . . . Impact Corruptions . | . . . . . . . . . . . . . . . Robots Melted . | . . . . . . . . . . . . . . . Combat Hostiles . | . . . . . . . . . . . . . . . Parts Melted . | . . . . . . . . . . . . . . . Heat Transferred . | . . . . . . . . . . . . . . . Parts Sabotaged . | . . . . . . . . . . . . . . . Parts Stolen . | . . . . . . . . . . . . . . . Parts Stripped . | . . . . . . . . . . . . . . . Power Chain Reactions . | . . . . . . . . . . . . . . . Missiles Intercepted . | . . . . . . . . . . . . . . . Alert | -11 -10 -10 -9 -9 -9 -8 -8 -7 -7 -6 -6 -6 -6 -5 ------- Run | Jun Mat Min Mat Min Exi Min Mat Fac DSF Fac Was Fac DSF Fac Peak Influence 278 | . 37 14 27 40 . . 106 54 56 184 64 44 45 278 Initial 64 | . . 14 5 10 . . . 54 41 29 64 44 30 23 Average 60 | . 17 14 13 15 . . 45 54 51 72 64 44 36 145 Maximum Alert Level 1 | . . . . . . . . . . . . . . 1 Low Security (%) 94 | 100 100 100 100 100 . 100 100 100 100 100 100 100 100 69 Level 1 5 | . . . . . . . . . . . . . . 30 Level 2 . | . . . . . . . . . . . . . . . Level 3 . | . . . . . . . . . . . . . . . Level 4 . | . . . . . . . . . . . . . . . Level 5 . | . . . . . . . . . . . . . . . High Security . | . . . . . . . . . . . . . . . Max Security . | . . . . . . . . . . . . . . . Squads Dispatched 18 | . 1 1 . . . 1 5 . 2 5 . . . 3 Investigation 9 | . . . . . . . 4 . . 4 . . . 1 Extermination . | . . . . . . . . . . . . . . . Reinforcement 8 | . 1 . . . . 1 1 . 2 1 . . . 2 Assault 1 | . . 1 . . . . . . . . . . . . Garrison . | . . . . . . . . . . . . . . . Intercept . | . . . . . . . . . . . . . . . Searches Triggered . | . . . . . . . . . . . . . . . Construction Impeded 2 | . . . . . . 1 . . . . . . . 1 Haulers Reinforced . | . . . . . . . . . . . . . . . Active Scanning Responses . | . . . . . . . . . . . . . . . Cargo Convoy Interrupts . | . . . . . . . . . . . . . . . Stealth | -11 -10 -10 -9 -9 -9 -8 -8 -7 -7 -6 -6 -6 -6 -5 --------- Run | Jun Mat Min Mat Min Exi Min Mat Fac DSF Fac Was Fac DSF Fac Distress Signals 7 | . 1 . . . . . 2 . . 1 . . . 3 Communications Jammed . | . . . . . . . . . . . . . . . Distress Signals . | . . . . . . . . . . . . . . . Times Spotted 59 | . 4 . 1 2 . . 11 . 8 8 4 . 2 19 Peak Tracking Total 14 | . 4 . 2 2 . . 14 . 9 8 4 . 2 9 Tactical Retreats 15 | . . . . 2 . . 3 . 1 2 . . 1 6 Traps | -11 -10 -10 -9 -9 -9 -8 -8 -7 -7 -6 -6 -6 -6 -5 ------- Run | Jun Mat Min Mat Min Exi Min Mat Fac DSF Fac Was Fac DSF Fac Traps Triggered 33 | . 2 . . . . . 5 2 1 8 . 2 2 11 Indirectly . | . . . . . . . . . . . . . . . Trap Hack Attempts . | . . . . . . . . . . . . . . . Triggered . | . . . . . . . . . . . . . . . Disarmed . | . . . . . . . . . . . . . . . Reprogrammed . | . . . . . . . . . . . . . . . Reused . | . . . . . . . . . . . . . . . Traps Extracted . | . . . . . . . . . . . . . . . Installed . | . . . . . . . . . . . . . . . Triggered . | . . . . . . . . . . . . . . . Machines | -11 -10 -10 -9 -9 -9 -8 -8 -7 -7 -6 -6 -6 -6 -5 ---------- Run | Jun Mat Min Mat Min Exi Min Mat Fac DSF Fac Was Fac DSF Fac Machines Disabled . | . . . . . . . . . . . . . . . Max in Single Turn . | . . . . . . . . . . . . . . . Garrison Access 1 | . . . . . . . . 1 . . . . . . Machines Repaired . | . . . . . . . . . . . . . . . Machines Sabotaged . | . . . . . . . . . . . . . . . Overloaded Fab Kills . | . . . . . . . . . . . . . . . Hacking | -11 -10 -10 -9 -9 -9 -8 -8 -7 -7 -6 -6 -6 -6 -5 --------- Run | Jun Mat Min Mat Min Exi Min Mat Fac DSF Fac Was Fac DSF Fac Machines Accessed 13 | . 1 . 1 . . . 4 2 . 3 . 1 . 1 Terminals 12 | . 1 . 1 . . . 4 1 . 3 . 1 . 1 Fabricators . | . . . . . . . . . . . . . . . Repair Stations . | . . . . . . . . . . . . . . . Recycling Units . | . . . . . . . . . . . . . . . Scanalyzers . | . . . . . . . . . . . . . . . Garrison Access 1 | . . . . . . . . 1 . . . . . . Total Hacks 23 | . 3 . 1 . . . 9 4 . 4 . 1 . 1 Successful 12 | . 1 . 1 . . . 4 2 . 2 . 1 . 1 Failed 11 | . 2 . . . . . 5 2 . 2 . . . . Catastrophic 4 | . 1 . . . . . 2 . . 1 . . . . Database Lockouts . | . . . . . . . . . . . . . . . Manual . | . . . . . . . . . . . . . . . Terminals 20 | . 3 . 1 . . . 9 1 . 4 . 1 . 1 Fabricators . | . . . . . . . . . . . . . . . Repair Stations . | . . . . . . . . . . . . . . . Recycling Units . | . . . . . . . . . . . . . . . Scanalyzers . | . . . . . . . . . . . . . . . Garrison Access 3 | . . . . . . . . 3 . . . . . . Terminal Hacks 11 | . 1 . 1 . . . 4 1 . 2 . 1 . 1 Open DSF 5 | . . . . . . . . 1 . 2 . 1 . 1 Branch Access Points 2 | . 1 . 1 . . . . . . . . . . . Emergency Access Points 1 | . . . . . . . 1 . . . . . . . Terminal Index 1 | . . . . . . . 1 . . . . . . . Assault Status 1 | . . . . . . . 1 . . . . . . . Recall Reinforcements 1 | . . . . . . . 1 . . . . . . . Fabricator Hacks . | . . . . . . . . . . . . . . . Repair Station Hacks . | . . . . . . . . . . . . . . . Recycling Unit Hacks . | . . . . . . . . . . . . . . . Scanalyzer . | . . . . . . . . . . . . . . . Garrison Access Hacks 1 | . . . . . . . . 1 . . . . . . Seal Access 1 | . . . . . . . . 1 . . . . . . Unauthorized Hacks . | . . . . . . . . . . . . . . . Terminals . | . . . . . . . . . . . . . . . Fabricators . | . . . . . . . . . . . . . . . Repair Stations . | . . . . . . . . . . . . . . . Recycling Units . | . . . . . . . . . . . . . . . Scanalyzers . | . . . . . . . . . . . . . . . Garrison Access . | . . . . . . . . . . . . . . . Data Cores Recovered . | . . . . . . . . . . . . . . . Used . | . . . . . . . . . . . . . . . Hacking Detections 8 | . 1 . . . . . 3 2 . 2 . . . . Full Trace Events 4 | . 1 . . . . . 2 . . 1 . . . . Feedback Events 1 | . . . . . . . . . . 1 . . . . Corruption 1 | . . . . . . . . . . 1 . . . . Feedback Blocked . | . . . . . . . . . . . . . . . Robot Schematics Acquired . | . . . . . . . . . . . . . . . Robots Built . | . . . . . . . . . . . . . . . Authchips . | . . . . . . . . . . . . . . . Time . | . . . . . . . . . . . . . . . Total Robot Build Rating . | . . . . . . . . . . . . . . . Part Schematics Acquired . | . . . . . . . . . . . . . . . Parts Built . | . . . . . . . . . . . . . . . Authchips . | . . . . . . . . . . . . . . . Time . | . . . . . . . . . . . . . . . Total Part Build Rating . | . . . . . . . . . . . . . . . Parts Repaired . | . . . . . . . . . . . . . . . Time . | . . . . . . . . . . . . . . . Parts Recycled . | . . . . . . . . . . . . . . . Recycled Matter . | . . . . . . . . . . . . . . . Retrieved Matter . | . . . . . . . . . . . . . . . Retrieved Components . | . . . . . . . . . . . . . . . Parts Scanalyzed . | . . . . . . . . . . . . . . . Part Schematics Acquired . | . . . . . . . . . . . . . . . Parts Damaged . | . . . . . . . . . . . . . . . Bothacking | -11 -10 -10 -9 -9 -9 -8 -8 -7 -7 -6 -6 -6 -6 -5 ------------ Run | Jun Mat Min Mat Min Exi Min Mat Fac DSF Fac Was Fac DSF Fac Used RIF Installer . | . . . . . . . . . . . . . . . Robots Hacked . | . . . . . . . . . . . . . . . Non-combat . | . . . . . . . . . . . . . . . Combat . | . . . . . . . . . . . . . . . Robot Hacks Applied . | . . . . . . . . . . . . . . . Relay Couplers Released . | . . . . . . . . . . . . . . . Fabnet Peak Effective % . | . . . . . . . . . . . . . . . Robots Rewired . | . . . . . . . . . . . . . . . Allies Hacked . | . . . . . . . . . . . . . . . Hacks Repelled . | . . . . . . . . . . . . . . . Allies | -11 -10 -10 -9 -9 -9 -8 -8 -7 -7 -6 -6 -6 -6 -5 -------- Run | Jun Mat Min Mat Min Exi Min Mat Fac DSF Fac Was Fac DSF Fac Total Allies 1 | . . 1 . . . . . . . . . . . . Largest Group 1 | . . 1 1 . . . . . . . . . . . Highest-Rated Group 31 | . . 31 31 . . . . . . . . . . . Highest-Rated Ally 31 | . . 31 31 . . . . . . . . . . . Total Orders . | . . . . . . . . . . . . . . . Ally Attacks . | . . . . . . . . . . . . . . . Total Damage . | . . . . . . . . . . . . . . . Kills . | . . . . . . . . . . . . . . . Allies Corrupted . | . . . . . . . . . . . . . . . Allies Melted . | . . . . . . . . . . . . . . . Intel | -11 -10 -10 -9 -9 -9 -8 -8 -7 -7 -6 -6 -6 -6 -5 ------- Run | Jun Mat Min Mat Min Exi Min Mat Fac DSF Fac Was Fac DSF Fac Robot Analysis Total . | . . . . . . . . . . . . . . . Derelict Logs Recovered 2 | . . 2 . . . . . . . . . . . . Drone Launches . | . . . . . . . . . . . . . . . Drone Recoveries . | . . . . . . . . . . . . . . . Exploration | -11 -10 -10 -9 -9 -9 -8 -8 -7 -7 -6 -6 -6 -6 -5 ------------- Run | Jun Mat Min Mat Min Exi Min Mat Fac DSF Fac Was Fac DSF Fac Turns Passed 1356 | 9 33 78 30 103 81 101 156 83 108 212 42 38 42 240 Spaces Moved 2355 | 17 66 149 59 205 162 195 238 165 80 394 73 74 56 422 Core 2355 | 17 66 149 59 205 162 195 238 165 80 394 73 74 56 422 Treads . | . . . . . . . . . . . . . . . Legs . | . . . . . . . . . . . . . . . Wheels . | . . . . . . . . . . . . . . . Hover . | . . . . . . . . . . . . . . . Flight . | . . . . . . . . . . . . . . . Fastest Speed 50 | 50 50 50 50 50 50 50 50 50 50 50 50 50 50 50 Average Speed 50 | 50 50 50 50 50 50 50 50 50 50 50 50 50 50 50 Slowest Speed 50 | 50 50 50 50 50 50 50 50 50 50 50 50 50 50 50 Overloaded Moves . | . . . . . . . . . . . . . . . Propulsion Burnouts . | . . . . . . . . . . . . . . . Robots Hopped . | . . . . . . . . . . . . . . . Cave-ins Triggered . | . . . . . . . . . . . . . . . Exploration Rate (%) 31 | 3 19 41 10 43 37 42 27 6 69 14 81 3 67 15 Regions Visited 14 Branch Regions 4 Pre-discovered Areas 1 | . . 1 . . . . . . . . . . . . Known Exits Taken 5 | . 1 1 1 . . . . 1 . . . 1 . . Unknown Exits Taken 5 | 1 . . . 1 1 1 1 . . . . . . . Scrap Searched . | . . . . . . . . . . . . . . . Spaces Dug . | . . . . . . . . . . . . . . . Terrain Destroyed . | . . . . . . . . . . . . . . . Melee . | . . . . . . . . . . . . . . . Projectile . | . . . . . . . . . . . . . . . AOE . | . . . . . . . . . . . . . . . Terrain Rammed . | . . . . . . . . . . . . . . . Walls Destroyed . | . . . . . . . . . . . . . . . Machines Disabled . | . . . . . . . . . . . . . . . Actions | -11 -10 -10 -9 -9 -9 -8 -8 -7 -7 -6 -6 -6 -6 -5 --------- Run | Jun Mat Min Mat Min Exi Min Mat Fac DSF Fac Was Fac DSF Fac Total 2518 | 17 65 151 58 204 161 197 274 164 147 409 77 74 69 451 Wait 132 | . . 3 . . . . 37 . 67 15 5 1 . 4 Move 2342 | 16 65 148 58 204 161 194 237 164 79 394 72 73 55 422 Hop . | . . . . . . . . . . . . . . . Pick Up . | . . . . . . . . . . . . . . . Fast Attach . | . . . . . . . . . . . . . . . Attach . | . . . . . . . . . . . . . . . Detach . | . . . . . . . . . . . . . . . Swap . | . . . . . . . . . . . . . . . Drop . | . . . . . . . . . . . . . . . Fire . | . . . . . . . . . . . . . . . Melee . | . . . . . . . . . . . . . . . Ram 15 | 1 . . . . . 3 . . 1 . . . . 10 Kick . | . . . . . . . . . . . . . . . Crush . | . . . . . . . . . . . . . . . Escape Stasis 29 | . . . . . . . . . . . . . 14 15 Rewire . | . . . . . . . . . . . . . . . Trap . | . . . . . . . . . . . . . . . Miscellaneous . | . . . . . . . . . . . . . . . Route ------- -11/Junkyard -10/Materials -10/Mines -9/Materials (discovered 2 exits: *Min / *Sto) -9/Mines (discovered 2 exits: *Mat / [*Exi]) -9/Exiles -8/Mines -8/Materials -7/Factory -7/DSF -6/Factory -6/Waste -6/Factory -6/DSF -5/Factory History --------- Turn | Location | Event 3 | -11/Junkyard | Discovered new exit (range 15) 10 | -11/Junkyard | Entered Materials 33 | -10/Materials | Identified exit to Mines 43 | -10/Materials | Entered Mines 44 | -10/Mines | Learned location of Storage (-9) 46 | -10/Mines | Learned Materials terminal intel 50 | -10/Mines | Met a Derelict bent on vengeance 83 | -10/Mines | Identified exit to Materials 118 | -10/Mines | Met a Derelict testing a Signal Generator 121 | -10/Mines | Entered Materials 121 | -9/Materials | Accompanied by 1 ally 121 | -9/Materials | Devolved, losing 1 slot: Weapon x-1 122 | -9/Materials | Loaded intel: 12 terminal locations 128 | -9/Materials | Identified exit to Mines 128 | -9/Materials | Identified exit to Storage 151 | -9/Materials | Entered Mines 162 | -9/Mines | Received a Rocket Launcher from a helpful Derelict 215 | -9/Mines | Discovered new exit (range 9) 252 | -9/Mines | Deemed a non-threat by the Exiles lab entrance 252 | -9/Mines | Discovered new exit (range 5) 254 | -9/Mines | Entered Exiles 267 | -9/Exiles | Met 8R-AWN 275 | -9/Exiles | Met EX-HEX 289 | -9/Exiles | Met EX-BIN 296 | -9/Exiles | Aligned with FarCom system 296 | -9/Exiles | Given EX-Vault access code 305 | -9/Exiles | Build established: Mutant 329 | -9/Exiles | Discovered new exit (range 14) 335 | -9/Exiles | Entered Mines 431 | -8/Mines | Discovered new exit (range 8) 436 | -8/Mines | Entered Materials 436 | -8/Materials | Devolved, losing 1 slot: Propulsion x-1 585 | -8/Materials | Discovered new exit (range 16) 592 | -8/Materials | Entered Factory 592 | -7/Factory | Devolved, losing 1 slot: Utility x-1 675 | -7/Factory | Identified exit to DSF 675 | -7/Factory | Entered DSF 693 | -7/DSF | Additional patrols routed to DSF 777 | -7/DSF | Discovered new exit (range 11) 783 | -7/DSF | Core integrity fell below 50% 783 | -7/DSF | Entered Factory 783 | -6/Factory | Devolved, losing 1 slot: Utility x-1 995 | -6/Factory | Sucked down chute 995 | -6/Factory | Entered Waste 1010 | -6/Waste | EMP discharged 1010 | -6/Waste | System corruption reached 10% 1011 | -6/Waste | Spotted C-40 Crusher 1012 | -6/Waste | Spotted C-40 Crusher 1012 | -6/Waste | Spotted C-40 Crusher 1015 | -6/Waste | Spotted C-40 Crusher 1015 | -6/Waste | Spotted C-40 Crusher 1018 | -6/Waste | Spotted C-40 Crusher 1019 | -6/Waste | Discovered new exit (range 15) 1037 | -6/Waste | Entered Factory 1075 | -6/Factory | Identified exit to DSF 1075 | -6/Factory | Entered DSF 1097 | -6/DSF | Additional patrols routed to DSF 1111 | -6/DSF | Discovered new exit (range 14) 1117 | -6/DSF | Entered Factory 1117 | -5/Factory | Devolved, losing 1 slot: Utility x-1 1289 | -5/Factory | Core integrity fell below 50% 1341 | -5/Factory | Core integrity fell below 20% 1357 | -5/Factory | Destroyed by H-71 Marshal with Heavy Mass Driver Last Messages --------------- 01315_ K-01 Serf destroyed. 01315_ A bubble of electromagnetic force engulfs the area. 01315_ Tesla Bomb Trap short circuited. 01315_ A bubble of electromagnetic force engulfs the area. 01315_ Tesla Bomb Trap short circuited. 01315_ Proton Bomb Trap short circuited. 01315_ A bubble of electromagnetic force engulfs the area. 01323_ HQF=AG3YNF0GFHYTR%WUB%GWK3Y 01335_ U-05 Engineer lays Concrete. 01346_ Penetrated by Slug. 01346_ U-05 Engineer lays Concrete. 01348_ U-05 Engineer builds a Door. 01349_ Slug penetrates Wall. 01351_ ALERT: Suspicious intruders detected, dispatching Cutter reinforcements to area. 01351_ W-25 Informer sends out distress signal. 01354_ Slammed into U-05 Engineer. 01354_ ALERT: Construction progress impeded, dispatching reinforcements to local area. 01356_ System corrupted: Heat flow error (+293). Map ----- +----------------------------------------------------+ | ?????????????????????????????????????????????????? | | ?????????????????????????????????????????????????? | | ?????????????????????????????????????????????????? | | ?????????????????????????????????????????????????? | | ?????????????????????????????????????????????????? | | ?????????????????????????????????????????????????? | | ?????????????????????????????????????????????????? | | ?????????????????????????????????????????????????? | | ?????????????????????????????????????????????????? | | ?????????????????????????????BB??????????????????? | | ?????????????????????????????BB??????????????????? | | ?????????????????????????????? ??????????????????? | | ?????????????????????????????? ??????????????????? | | ?????????????????????????????? ??????????????????? | | ?????????????????????????????? ??????????????????? | | ?????????????????????????????? ??????????????????? | | ???????????????????? ????????" "?????????????????? | | ???????????????????# ???????" ""????????????????? | | ???????????????????# ??????" """"????o?????????? | | ???????????????????# """""" """"??????????????? | | ????????????#T #####Hp ??????????????? | | ???????????R t """""" """""?????????????? | | ??????????? """""" """"""????????????? | | ?????????? k """""" """""" #?????????? | | ?????????? """""" """""" #?????????? | | ?????????? k @ c u #?????????? | | ?????????????????### """""" """""" #?????????? | | ???????????????????# %"""""" """""" #?????????? | | ???????????????????# """""" """""" #?????????? | | ???????????????????# """"""c"""""" #?????????? | | ???????????????????# Ru +?????????? | | ???????????????????+ #?????????? | | ???????????????????# w p #?????????? | | ???????????????????# ###/##### #?????????? | | ???????????????????# ?? ????# #?????????? | | ????????????????? ??? ????# #?????????? | | ??????????????? g ???? "????#p #?????????? | | ??????????????? g?????# "???## ##+#+#?#### | | ???????????????????g?????# ????# #?# = | | ?????????????????????????# ????## #?# | | ?????????????????????????# ??????# #?# | | ?????????????????????????# ??????# ### | | ?????????????????????????? ??????# % / "" | | ?????????????????????????????????# # "" | | ?????????????????????????????????# "" | | ?????????????????????????????????# # "" | | ?????????????????????????????????# # "" | | ?????????????????????????????????# # "" | | ??????????????????????????#/###### # | | ?????????????????????"" # | +----------------------------------------------------+ Best States ------------- Heat Dissipation 20 Energy Generation 5 Energy Capacity 100 Matter Stores 159 Matter Capacity 300 Sight Range 16 Terrain Scan Density 10 Evasion (%) 50 Item Schematics ----------------- None Robot Schematics ------------------ None Fabricated ------------ Nothing Alien Tech Used ----------------- None Achievements -------------- None Challenges ------------ Devolution Fragile Parts No Salvage Pure Core Scavenger Simple Hacker Trapped Game ------ Seed InsulationPhasingLeg Manual? 0 Play Time 00:15:46 Cumulative 280.0 hours Start 2023.03.26 @ 03:10:08 End 2023.03.26 @ 03:23:42 Sessions 1 Manual Loads 0 Difficulty Rogue Special Mode None Game No. 257 Rogue 240 Adventurer 1 Explorer 16 Win Type - Total 16 Types 13/1/0/2/0/0/0/0/0 Lore% 74 Gallery% 80 Achievement% 72 Wizard Run 0 Options --------- ASCII 1 Keyboard 1 Movement Numpad Keybinds 1 Fullscreen 1 Font 18/X11 Map View 76x50 Tactical HUD 1 Map Filters NONE Filters NONE Steam 1 RUN: fbb0e93e-bc94-48fc-9d45-f248c6a2c305